[Event "26th Zadar Open 2019"]
[Site "Zadar"]
[Date "2019.12.18"]
[Round "5.11"]
[White "Sinanovic, Muhamed"]
[Black "Spalir, Jernej"]
[Result "1/2-1/2"]
[ECO "C00"]
[WhiteElo "2309"]
[BlackElo "2429"]
[Annotator "NA"]
[PlyCount "88"]
[EventDate "2019.12.15"]
[EventType "swiss"]
[EventCountry "CRO"]
[SourceTitle "playchess.com"]
[Source "ChessBase"]
[SourceQuality "1"]
[TimeControl "40/5400+30:1800+30"]

1. g3 {[%emt 0:00:30]} Nf6 {[%emt 0:00:30]} 2. Bg2 {[%emt 0:00:00]} d5 {[%emt 0:00:00]} 3. Nf3 {[%emt 0:00:00]} e6 {[%emt 0:00:00]} 4. O-O {[%emt 0:00:30]} c5 $11 {[%emt 0:00:30]} 5. d3 {[%emt 0:03:30]} Nc6 {[%emt 0:01:30]} 6. Nbd2 {[%emt 0:00:30]} Be7 {[%emt 0:00:00]} 7. e4 {[%emt 0:00:30]} O-O {[%emt 0:00:00]} 8. Re1 {[%emt 0:01:30]} b5 {[%emt 0:00:00]} 9. e5 {[%emt 0:08:30]} Nd7 {[%emt 0:00:00]} 10. Nf1 {[%emt 0:00:30]} Bb7 {[%emt 0:00:30]} 11. h4 {[%emt 0:00:00]} Qc7 {[%emt 0:00:30]} 12. Bf4 {[%emt 0:00:00]} Rfc8 {[%emt 0:00:00]} 13. h5 {[%emt 0:00:30]} h6 {[%emt 0:00:00]} 14. N1h2 {[%emt 0:05:30]} Qd8 {[%emt 0:00:30]} 15. Qd2 {[%emt 0:06:30]} a5 {[%emt 0:01:30]} 16. Ng4 {[%emt 0:18:30]} Bf8 {[%emt 0:00:30]} 17. c3 {[%emt 0:07:30]} a4 {[%emt 0:04:30]} 18. Bf1 {[%emt 0:11:30]} d4 {[%emt 0:09:30]} 19. c4 {[%emt 0:06:30]} Nb6 {[%emt 0:01:30]} 20. Nfh2 {[%emt 0:02:30]} Ne7 {[%emt 0:03:30]} 21. Rac1 {[%emt 0:05:30]} Nf5 {[%emt 0:01:30]} 22. f3 {[%emt 0:04:25]} Be7 {[%emt 0:03:30]} 23. Nf2 {[%emt 0:07:16]} bxc4 {[%emt 0:00:30]} 24. dxc4 {[%emt 0:00:08]} Bg5 {[%emt 0:00:00]} 25. Bxg5 {[%emt 0:01:25]} Qxg5 {[%emt 0:00:00]} 26. Qxg5 {[%emt 0:00:12]} hxg5 {[%emt 0:00:30]} 27. g4 {[%emt 0:02:25]} Ne3 {[%emt 0:01:30]} 28. Nd1 {[%emt 0:00:29]} Nxd1 {[%emt 0:01:30]} 29. Rcxd1 {[%emt 0:00:57]} Rcb8 {[%emt 0:04:30]} 30. Bd3 {[%emt 0:00:40]} Ba6 {[%emt 0:00:30]} 31. b3 {[%emt 0:02:15]} axb3 {[%emt 0:00:30]} 32. axb3 {[%emt 0:00:02]} Nd7 {[%emt 0:00:30]} 33. Rb1 {[%emt 0:02:08]} Bb7 {[%emt 0:03:30]} 34. Re2 {[%emt 0:01:20]} Bc6 {[%emt 0:03:30]} 35. Kf2 {[%emt 0:00:21]} Ra3 {[%emt 0:05:30]} 36. Bc2 {[%emt 0:00:10]} d3 {[%emt 0:00:30]} 37. Bxd3 {[%emt 0:00:02]} Rbxb3 {[%emt 0:00:30]} 38. Rxb3 {[%emt 0:00:41]} Rxb3 {[%emt 0:00:00]} 39. Re3 {[%emt 0:00:33]} Kf8 {[%emt 0:01:00]} 40. Nf1 {[%emt 0:01:52]} Bb7 {[%emt 0:07:30]} 41. Nd2 {[%emt 0:30:32]} Ra3 {[%emt 0:00:30]} 42. Nb1 {[%emt 0:00:00]} Rb3 {[%emt 0:01:30]} 43. Nd2 {[%emt 0:00:00]} Ra3 {[%emt 0:00:30]} 44. Nb1 {[%emt 0:00:00]} Rb3 {[%emt 0:00:00]} 1/2-1/2

[Event "26th Zadar Open 2019"]
[Site "Zadar"]
[Date "2019.12.18"]
[Round "5.12"]
[White "Moksh Amit Doshi"]
[Black "Dixit, Nikhil"]
[Result "0-1"]
[ECO "E62"]
[WhiteElo "2399"]
[BlackElo "2318"]
[Annotator "NA"]
[PlyCount "76"]
[EventDate "2019.12.15"]
[EventType "swiss"]
[EventCountry "CRO"]
[SourceTitle "playchess.com"]
[Source "ChessBase"]
[SourceQuality "1"]
[TimeControl "40/5400+30:1800+30"]

1. d4 {[%emt 0:01:30]} Nf6 {[%emt 0:00:30]} 2. c4 {[%emt 0:00:00]} g6 {[%emt 0:00:30]} 3. g3 {[%emt 0:00:00]} Bg7 {[%emt 0:03:30]} 4. Bg2 {[%emt 0:00:00]} O-O {[%emt 0:00:00]} 5. Nc3 {[%emt 0:00:00]} d6 {[%emt 0:00:00]} 6. Nf3 {[%emt 0:00:30]} c6 {[%emt 0:01:30]} 7. O-O {[%emt 0:00:00]} Bf5 {[%emt 0:08:30]} 8. Ne1 {[%emt 0:00:00]} e5 {[%emt 0:00:30]} 9. d5 {[%emt 0:04:30]} cxd5 {[%emt 0:03:30]} 10. cxd5 {[%emt 0:00:30]} Qd7 {[%emt 0:01:30]} 11. e4 {[%emt 0:01:30]} Bh3 {[%emt 0:01:30]} 12. Nd3 {[%emt 0:00:30]} Bxg2 {[%emt 0:02:30]} 13. Kxg2 {[%emt 0:00:30]} Na6 {[%emt 0:00:30]} 14. b4 {[%emt 0:04:30]} Rfc8 {[%emt 0:08:30]} 15. Qb3 {[%emt 0:00:30]} Qc7 {[%emt 0:01:30]} 16. Bd2 {[%emt 0:00:30]} Qc4 {[%emt 0:02:30]} 17. Qxc4 {[%emt 0:17:30]} Rxc4 {[%emt 0:00:30]} 18. Rfd1 {[%emt 0:07:30]} Nxe4 {[%emt 0:08:30]} 19. Nxe4 {[%emt 0:01:30]} Rxe4 {[%emt 0:00:00]} 20. Rac1 {[%emt 0:04:30]} Rd4 {[%emt 0:04:00]} 21. b5 {[%emt 0:00:00]} Rxd3 {[%emt 0:01:30]} 22. bxa6 {[%emt 0:00:00]} bxa6 {[%emt 0:00:30]} 23. Be3 {[%emt 0:03:30]} Rxd1 {[%emt 0:00:30]} 24. Rxd1 {[%emt 0:00:30]} Rb8 {[%emt 0:11:30]} 25. Rc1 {[%emt 0:01:30]} Bf8 {[%emt 0:01:30]} 26. Rc6 {[%emt 0:00:30]} a5 {[%emt 0:04:30]} 27. Ra6 {[%emt 0:00:30]} Rb5 {[%emt 0:01:30]} 28. a4 {[%emt 0:01:30]} Rxd5 {[%emt 0:01:30]} 29. Rxa7 {[%emt 0:00:00]} Kg7 {[%emt 0:04:30]} 30. Bb6 {[%emt 0:00:00]} Rd2 {[%emt 0:04:30]} 31. Rxa5 {[%emt 0:04:30]} Rb2 {[%emt 0:03:53]} 32. Rb5 {[%emt 0:01:30]} Ra2 {[%emt 0:00:22]} 33. a5 {[%emt 0:01:30]} Kf6 {[%emt 0:01:25]} 34. Bc7 {[%emt 0:05:30]} Ke6 {[%emt 0:03:26]} 35. Rb8 {[%emt 0:00:00]} Be7 {[%emt 0:00:32]} 36. Bb6 {[%emt 0:01:00]} d5 {[%emt 0:02:03]} 37. Rb7 {[%emt 0:06:30]} d4 {[%emt 0:01:25]} 38. Rc7 {[%emt 0:03:30]} d3 {[%emt 0:01:21]} 0-1

[Event "26th Zadar Open 2019"]
[Site "Zadar"]
[Date "2019.12.18"]
[Round "5.13"]
[White "Bukal, Vladimir Jr."]
[Black "Mitev, Valentin"]
[Result "1/2-1/2"]
[ECO "D02"]
[WhiteElo "2393"]
[BlackElo "2233"]
[Annotator "NA"]
[PlyCount "67"]
[EventDate "2019.12.15"]
[EventType "swiss"]
[EventCountry "CRO"]
[SourceTitle "playchess.com"]
[Source "ChessBase"]
[SourceQuality "1"]
[TimeControl "40/5400+30:1800+30"]

1. d4 {[%emt 0:00:30]} d5 {[%emt 0:00:30]} 2. Nf3 {[%emt 0:00:00]} Nf6 {[%emt 0:00:00]} 3. Bf4 {[%emt 0:00:00]} c5 {[%emt 0:01:00]} 4. e3 {[%emt 0:00:00]} Nc6 {[%emt 0:00:00]} 5. Bb5 {[%emt 0:00:00]} Qa5+ {[%emt 0:00:00]} 6. Nc3 {[%emt 0:00:30]} Ne4 {[%emt 0:00:30]} 7. O-O {[%emt 0:00:30]} Nxc3 {[%emt 0:00:30]} 8. Bxc6+ {[%emt 0:00:00]} bxc6 {[%emt 0:00:00]} 9. bxc3 {[%emt 0:00:00]} Qxc3 {[%emt 0:00:00]} 10. e4 {[%emt 0:00:30]} dxe4 $15 {[%emt 0:15:30]} 11. Ng5 {[%emt 0:00:00]} Bf5 {[%emt 0:07:30]} 12. Qe2 {[%emt 0:00:00]} e5 {[%emt 0:16:30]} 13. Bxe5 {[%emt 0:12:30]} f6 {[%emt 0:04:30]} 14. Nxe4 {[%emt 0:02:30]} Bxe4 {[%emt 0:00:00]} 15. Qxe4 {[%emt 0:00:30]} Kf7 {[%emt 0:00:00]} 16. Qxc6 {[%emt 0:08:30]} Be7 {[%emt 0:11:30]} 17. Rab1 {[%emt 0:18:30]} Rad8 {[%emt 0:07:30]} 18. Bc7 {[%emt 0:06:30]} Rxd4 {[%emt 0:02:30]} 19. Rfe1 {[%emt 0:00:30]} Qc4 {[%emt 0:00:30]} 20. Ba5 {[%emt 0:04:30]} Bd6 {[%emt 0:04:30]} 21. c3 {[%emt 0:12:30]} Rd5 {[%emt 0:02:30]} 22. Rb4 {[%emt 0:05:30]} Qd3 {[%emt 0:02:30]} 23. Qb7+ {[%emt 0:07:44]} Kg6 {[%emt 0:00:30]} 24. Rg4+ {[%emt 0:00:16]} Rg5 {[%emt 0:00:00]} 25. Rxg5+ {[%emt 0:00:57]} fxg5 {[%emt 0:00:00]} 26. Re6+ {[%emt 0:07:06]} Kh5 {[%emt 0:00:30]} 27. Re1 {[%emt 0:04:35]} Kg6 {[%emt 0:01:30]} 28. g3 {[%emt 0:01:01]} Rf8 {[%emt 0:02:30]} 29. Qc6 {[%emt 0:02:54]} Kh6 {[%emt 0:09:58]} 30. Qe4 {[%emt 0:02:31]} Qf3 {[%emt 0:03:19]} 31. Qxf3 {[%emt 0:01:01]} Rxf3 {[%emt 0:00:30]} 32. Re6+ {[%emt 0:01:15]} Rf6 {[%emt 0:00:01]} 33. Re4 {[%emt 0:00:00]} Rf5 {[%emt 0:01:12]} 34. Re6+ {[%emt 0:00:15]} 1/2-1/2

[Event "26th Zadar Open 2019"]
[Site "Zadar"]
[Date "2019.12.18"]
[Round "5.14"]
[White "Sai Agni Jeevitesh, J."]
[Black "Bratovic, Blaz"]
[Result "0-1"]
[ECO "D32"]
[WhiteElo "2301"]
[BlackElo "2359"]
[Annotator "NA"]
[PlyCount "82"]
[EventDate "2019.12.15"]
[EventType "swiss"]
[EventCountry "CRO"]
[SourceTitle "playchess.com"]
[Source "ChessBase"]
[SourceQuality "1"]
[TimeControl "40/5400+30:1800+30"]

1. Nf3 {[%emt 0:00:30]} Nf6 {[%emt 0:00:30]} 2. c4 {[%emt 0:00:00]} e6 {[%emt 0:00:00]} 3. e3 {[%emt 0:00:00]} d5 {[%emt 0:00:00]} 4. Nc3 {[%emt 0:00:30]} Be7 {[%emt 0:00:30]} 5. b3 {[%emt 0:00:00]} c5 {[%emt 0:00:30]} 6. cxd5 {[%emt 0:01:00]} exd5 {[%emt 0:00:30]} 7. d4 {[%emt 0:04:30]} O-O {[%emt 0:00:30]} 8. Be2 {[%emt 0:00:00]} Nc6 {[%emt 0:00:30]} 9. O-O {[%emt 0:00:00]} Bg4 {[%emt 0:01:30]} 10. dxc5 {[%emt 0:00:30]} Bxc5 {[%emt 0:00:00]} 11. Bb2 {[%emt 0:00:30]} a6 {[%emt 0:04:00]} 12. Rc1 {[%emt 0:00:30]} Ba7 {[%emt 0:00:30]} 13. Nd4 {[%emt 0:11:30]} Bxd4 {[%emt 0:05:30]} 14. Bxg4 {[%emt 0:02:30]} Be5 {[%emt 0:06:30]} 15. Bf3 {[%emt 0:03:30]} Qa5 {[%emt 0:00:30]} 16. Qe2 {[%emt 0:19:30]} Rad8 {[%emt 0:01:30]} 17. Na4 {[%emt 0:02:30]} Rfe8 {[%emt 0:10:30]} 18. Rfd1 {[%emt 0:11:30]} d4 {[%emt 0:01:30]} 19. Bxc6 {[%emt 0:11:30]} bxc6 {[%emt 0:00:00]} 20. Rxc6 {[%emt 0:18:31]} d3 {[%emt 0:05:00]} 21. Qd2 {[%emt 0:03:30]} Bxh2+ {[%emt 0:01:30]} 22. Kf1 {[%emt 0:00:01]} Qh5 {[%emt 0:01:30]} 23. Bxf6 {[%emt 0:04:10]} Be5 {[%emt 0:15:30]} 24. f4 {[%emt 0:01:07]} Bxf6 {[%emt 0:00:30]} 25. Rxf6 {[%emt 0:03:53]} gxf6 {[%emt 0:07:30]} 26. Nb2 {[%emt 0:00:06]} Kh8 {[%emt 0:00:30]} 27. Nxd3 {[%emt 0:01:00]} Rg8 {[%emt 0:05:30]} 28. Kf2 {[%emt 0:00:00]} Qh4+ {[%emt 0:01:30]} 29. Kg1 {[%emt 0:00:39]} Rg6 {[%emt 0:03:30]} 30. Qe2 {[%emt 0:00:40]} Rdg8 {[%emt 0:00:00]} 31. Ne1 {[%emt 0:00:10]} Rh6 {[%emt 0:00:00]} 32. Qf3 {[%emt 0:00:53]} Qh1+ {[%emt 0:03:30]} 33. Kf2 {[%emt 0:00:01]} Rhg6 {[%emt 0:00:00]} 34. Rd7 {[%emt 0:00:58]} Qh4+ {[%emt 0:03:00]} 35. Ke2 {[%emt 0:00:27]} Rg3 {[%emt 0:00:30]} 36. Qd5 {[%emt 0:00:31]} Re8 {[%emt 0:03:53]} 37. Nc2 {[%emt 0:00:46]} Qxf4 {[%emt 0:03:34]} 38. Rxf7 {[%emt 0:00:33]} Rgxe3+ {[%emt 0:00:36]} 39. Nxe3 {[%emt 0:00:26]} Qxe3+ {[%emt 0:00:55]} 40. Kd1 {[%emt 0:00:01]} Qe2+ {[%emt 0:00:00]} 41. Kc1 {[%emt 0:30:08]} Rc8+ {[%emt 0:30:05]} 0-1

[Event "26th Zadar Open 2019"]
[Site "Zadar"]
[Date "2019.12.18"]
[Round "5.15"]
[White "Chan, Kim Yew"]
[Black "Manush Shah"]
[Result "1/2-1/2"]
[ECO "A11"]
[WhiteElo "2245"]
[BlackElo "2341"]
[Annotator "NA"]
[PlyCount "45"]
[EventDate "2019.12.15"]
[EventType "swiss"]
[EventCountry "CRO"]
[SourceTitle "playchess.com"]
[Source "ChessBase"]
[SourceQuality "1"]
[TimeControl "40/5400+30:1800+30"]

1. Nf3 {[%emt 0:00:30]} d5 {[%emt 0:00:30]} 2. g3 {[%emt 0:00:30]} c6 {[%emt 0:00:30]} 3. Bg2 {[%emt 0:00:30]} Bg4 {[%emt 0:00:30]} 4. c4 {[%emt 0:00:00]} e6 {[%emt 0:00:30]} 5. cxd5 {[%emt 0:00:00]} Bxf3 $11 {[%emt 0:01:30]} 6. Bxf3 {[%emt 0:00:00]} cxd5 {[%emt 0:00:30]} 7. O-O {[%emt 0:07:00]} Nf6 {[%emt 0:00:30]} 8. Nc3 {[%emt 0:12:30]} Nc6 {[%emt 0:01:30]} 9. d4 {[%emt 0:01:30]} Qb6 {[%emt 0:07:30]} 10. e3 {[%emt 0:00:30]} Be7 {[%emt 0:02:30]} 11. Qb3 {[%emt 0:00:30]} Qxb3 {[%emt 0:02:30]} 12. axb3 {[%emt 0:00:30]} O-O {[%emt 0:01:30]} 13. Bd2 {[%emt 0:00:30]} Bb4 {[%emt 0:14:30]} 14. Rfc1 {[%emt 0:04:30]} Rfc8 {[%emt 0:01:30]} 15. Kf1 {[%emt 0:04:30]} b6 {[%emt 0:09:30]} 16. Ke1 {[%emt 0:03:30]} Kf8 {[%emt 0:11:30]} 17. Be2 {[%emt 0:02:30]} Na5 {[%emt 0:03:30]} 18. Bd1 {[%emt 0:01:30]} Nc6 {[%emt 0:02:30]} 19. Be2 {[%emt 0:00:30]} Na5 {[%emt 0:00:00]} 20. Bd1 {[%emt 0:03:30]} Nc6 {[%emt 0:00:00]} 21. Be2 {[%emt 0:05:30]} Na5 {[%emt 0:00:30]} 22. Bd1 {[%emt 0:00:30]} Nc6 {[%emt 0:00:30]} 23. Be2 {[%emt 0:00:30]} 1/2-1/2

[Event "26th Zadar Open 2019"]
[Site "Zadar"]
[Date "2019.12.18"]
[Round "5.16"]
[White "Vidic, Teja"]
[Black "Nester, Ihor"]
[Result "1/2-1/2"]
[ECO "C45"]
[WhiteElo "2221"]
[BlackElo "2329"]
[Annotator "NA"]
[PlyCount "84"]
[EventDate "2019.12.15"]
[EventType "swiss"]
[EventCountry "CRO"]
[SourceTitle "playchess.com"]
[Source "ChessBase"]
[SourceQuality "1"]
[TimeControl "40/5400+30:1800+30"]

1. e4 {[%emt 0:00:30]} e5 {[%emt 0:07:30]} 2. Nf3 {[%emt 0:00:00]} Nc6 {[%emt 0:00:30]} 3. d4 {[%emt 0:00:00]} exd4 {[%emt 0:00:30]} 4. Nxd4 {[%emt 0:00:30]} Nf6 {[%emt 0:00:00]} 5. Nxc6 {[%emt 0:00:30]} bxc6 {[%emt 0:00:00]} 6. e5 {[%emt 0:00:00]} Qe7 {[%emt 0:00:30]} 7. Qe2 {[%emt 0:00:00]} Nd5 {[%emt 0:00:00]} 8. c4 {[%emt 0:00:30]} Nb6 {[%emt 0:00:00]} 9. Nc3 {[%emt 0:00:00]} Qe6 {[%emt 0:00:00]} 10. Qe4 {[%emt 0:01:00]} g6 {[%emt 0:00:00]} 11. Bd3 {[%emt 0:04:30]} Bg7 {[%emt 0:00:30]} 12. f4 {[%emt 0:01:30]} O-O {[%emt 0:06:30]} 13. O-O {[%emt 0:04:30]} Ba6 {[%emt 0:04:30]} 14. c5 {[%emt 0:06:30]} Bxd3 {[%emt 0:00:30]} 15. Qxd3 {[%emt 0:00:30]} Nd5 {[%emt 0:00:30]} 16. Bd2 {[%emt 0:03:30]} f6 {[%emt 0:22:30]} 17. exf6 {[%emt 0:02:30]} Bxf6 {[%emt 0:01:30]} 18. Rae1 {[%emt 0:05:30]} Qf5 {[%emt 0:03:30]} 19. Qxf5 {[%emt 0:08:30]} gxf5 {[%emt 0:13:30]} 20. Nxd5 {[%emt 0:00:30]} cxd5 {[%emt 0:00:30]} 21. Bc3 {[%emt 0:00:30]} Bxc3 {[%emt 0:09:30]} 22. bxc3 {[%emt 0:00:30]} Rab8 {[%emt 0:00:00]} 23. Rf3 {[%emt 0:22:30]} Rfe8 {[%emt 0:04:00]} 24. Rxe8+ {[%emt 0:13:30]} Rxe8 {[%emt 0:00:00]} 25. Rd3 {[%emt 0:00:00]} c6 {[%emt 0:00:00]} 26. Kf2 {[%emt 0:02:00]} Rb8 {[%emt 0:00:30]} 27. Re3 {[%emt 0:05:27]} Rb5 {[%emt 0:12:13]} 28. Kg3 {[%emt 0:06:16]} Kf7 {[%emt 0:01:59]} 29. Kh4 {[%emt 0:00:24]} Kf6 {[%emt 0:00:01]} 30. h3 {[%emt 0:06:37]} Rxc5 {[%emt 0:00:08]} 31. g4 {[%emt 0:00:00]} Rc4 {[%emt 0:03:28]} 32. Rf3 {[%emt 0:01:16]} Kg6 {[%emt 0:01:12]} 33. Kg3 {[%emt 0:00:47]} Ra4 {[%emt 0:00:25]} 34. Re3 {[%emt 0:01:53]} Rxa2 {[%emt 0:00:28]} 35. Re7 {[%emt 0:00:16]} fxg4 {[%emt 0:08:26]} 36. hxg4 {[%emt 0:00:32]} h5 {[%emt 0:00:06]} 37. Rxd7 {[%emt 0:01:27]} hxg4 {[%emt 0:00:17]} 38. Kxg4 {[%emt 0:01:17]} Rg2+ {[%emt 0:00:09]} 39. Kf3 {[%emt 0:00:13]} Rh2 {[%emt 0:02:17]} 40. Kg4 {[%emt 0:00:48]} Rg2+ {[%emt 0:00:17]} 41. Kf3 {[%emt 0:00:17]} Ra2 {[%emt 0:09:04]} 42. Kg4 {[%emt 0:03:30]} Rg2+ {[%emt 0:05:49]} 1/2-1/2

[Event "26th Zadar Open 2019"]
[Site "Zadar"]
[Date "2019.12.18"]
[Round "5.17"]
[White "Plenkovic, Zdenko"]
[Black "Guttenthaler, Franz"]
[Result "1-0"]
[ECO "A11"]
[WhiteElo "2355"]
[BlackElo "2304"]
[Annotator "NA"]
[PlyCount "123"]
[EventDate "2019.12.15"]
[EventType "swiss"]
[EventCountry "CRO"]
[SourceTitle "playchess.com"]
[Source "ChessBase"]
[SourceQuality "1"]
[TimeControl "40/5400+30:1800+30"]

1. Nf3 {[%emt 0:00:30]} Nf6 {[%emt 0:00:30]} 2. g3 {[%emt 0:00:30]} d5 {[%emt 0:00:30]} 3. Bg2 {[%emt 0:00:00]} c6 {[%emt 0:02:30]} 4. O-O {[%emt 0:00:00]} Bg4 {[%emt 0:01:30]} 5. d3 {[%emt 0:02:30]} e6 {[%emt 0:02:30]} 6. c4 {[%emt 0:01:30]} Be7 {[%emt 0:04:30]} 7. cxd5 {[%emt 0:07:30]} Bxf3 {[%emt 0:03:30]} 8. Bxf3 {[%emt 0:00:00]} cxd5 {[%emt 0:00:30]} 9. Qb3 {[%emt 0:05:00]} Qd7 {[%emt 0:01:30]} 10. Be3 {[%emt 0:13:30]} Nc6 {[%emt 0:01:30]} 11. Rc1 {[%emt 0:00:30]} O-O {[%emt 0:00:30]} 12. Nd2 {[%emt 0:09:30]} Rac8 {[%emt 0:03:30]} 13. Qa4 {[%emt 0:01:30]} b6 {[%emt 0:07:30]} 14. Bg2 {[%emt 0:04:30]} Nb4 {[%emt 0:03:30]} 15. Qxd7 {[%emt 0:07:30]} Nxd7 {[%emt 0:00:30]} 16. Rxc8 {[%emt 0:00:30]} Rxc8 {[%emt 0:00:00]} 17. a3 {[%emt 0:00:30]} Na6 {[%emt 0:06:00]} 18. d4 {[%emt 0:11:30]} Rc2 {[%emt 0:13:30]} 19. Rb1 {[%emt 0:00:30]} Bd6 {[%emt 0:05:30]} 20. Kf1 {[%emt 0:03:30]} Kf8 {[%emt 0:02:30]} 21. Ke1 {[%emt 0:00:30]} Ke7 {[%emt 0:01:30]} 22. Kd1 {[%emt 0:00:00]} Rc7 {[%emt 0:00:30]} 23. Nb3 {[%emt 0:06:00]} Nf6 {[%emt 0:01:30]} 24. f3 {[%emt 0:01:30]} Nd7 {[%emt 0:13:30]} 25. Bd2 {[%emt 0:01:30]} h6 {[%emt 0:00:30]} 26. Bf1 {[%emt 0:02:34]} Nab8 {[%emt 0:00:30]} 27. e3 {[%emt 0:03:24]} f5 {[%emt 0:02:30]} 28. Nc1 {[%emt 0:02:04]} Nf6 {[%emt 0:00:30]} 29. Nd3 {[%emt 0:04:07]} Nbd7 {[%emt 0:03:24]} 30. a4 {[%emt 0:04:11]} g5 {[%emt 0:03:02]} 31. a5 {[%emt 0:00:25]} g4 {[%emt 0:03:22]} 32. f4 {[%emt 0:00:04]} Ne4 {[%emt 0:01:42]} 33. Be1 {[%emt 0:00:05]} h5 {[%emt 0:02:16]} 34. Ra1 {[%emt 0:00:28]} Kd8 {[%emt 0:01:01]} 35. axb6 {[%emt 0:00:37]} axb6 {[%emt 0:00:59]} 36. Ra6 {[%emt 0:02:06]} Rb7 {[%emt 0:02:58]} 37. Nb4 {[%emt 0:01:04]} Bxb4 {[%emt 0:02:12]} 38. Bxb4 {[%emt 0:00:05]} Kc7 {[%emt 0:00:25]} 39. Bb5 {[%emt 0:02:48]} Ndf6 {[%emt 0:01:19]} 40. Be7 {[%emt 0:01:35]} Ng8 {[%emt 0:00:00]} 41. Bg5 {[%emt 0:07:23]} Ngf6 {[%emt 0:05:50]} 42. Bh4 {[%emt 0:04:30]} Kb8 {[%emt 0:05:30]} 43. Ke1 {[%emt 0:02:30]} Kc7 {[%emt 0:02:30]} 44. Bg5 {[%emt 0:01:30]} Kb8 {[%emt 0:00:30]} 45. Bh6 {[%emt 0:01:19]} Nd6 {[%emt 0:01:30]} 46. Bd3 {[%emt 0:03:27]} Nd7 {[%emt 0:02:00]} 47. Bg7 {[%emt 0:02:07]} Ra7 {[%emt 0:01:38]} 48. Rxa7 {[%emt 0:01:23]} Kxa7 {[%emt 0:00:05]} 49. Be5 {[%emt 0:00:36]} Nc4 {[%emt 0:05:40]} 50. b3 {[%emt 0:00:29]} Ndxe5 {[%emt 0:01:34]} 51. fxe5 {[%emt 0:01:47]} Na5 {[%emt 0:05:03]} 52. Bb5 {[%emt 0:00:19]} Nb7 {[%emt 0:00:16]} 53. Be8 {[%emt 0:03:43]} Ka6 {[%emt 0:01:44]} 54. Kd2 {[%emt 0:00:34]} b5 {[%emt 0:00:44]} 55. Kc3 {[%emt 0:01:18]} Ka5 {[%emt 0:00:08]} 56. b4+ {[%emt 0:00:37]} Kb6 {[%emt 0:00:04]} 57. Bxh5 {[%emt 0:00:11]} Nd8 {[%emt 0:00:12]} 58. Be8 {[%emt 0:00:07]} Ka6 {[%emt 0:00:56]} 59. Bd7 {[%emt 0:00:19]} Kb6 {[%emt 0:00:05]} 60. Kd2 {[%emt 0:00:05]} Ka6 {[%emt 0:00:46]} 61. Ke2 {[%emt 0:00:24]} Kb6 {[%emt 0:00:06]} 62. Kf2 {[%emt 0:00:07]} 1-0

[Event "26th Zadar Open 2019"]
[Site "Zadar"]
[Date "2019.12.18"]
[Round "5.18"]
[White "Gelbenegger, Patrick"]
[Black "Martinovic, Sasa"]
[Result "0-1"]
[ECO "B92"]
[WhiteElo "2267"]
[BlackElo "2544"]
[Annotator "ChessBase"]
[PlyCount "44"]
[EventDate "2019.12.15"]
[EventType "swiss"]
[EventCountry "CRO"]
[SourceTitle "playchess.com"]
[Source "ChessBase"]
[SourceQuality "1"]
[TimeControl "40/5400+30:1800+30"]

1. e4 {[%emt 0:05:30]} c5 {[%emt 0:00:30]} 2. Nf3 {[%emt 0:00:30]} d6 {[%emt 0:00:00]} 3. d4 {[%emt 0:00:00]} cxd4 {[%emt 0:00:00]} 4. Nxd4 {[%emt 0:00:00]} Nf6 {[%emt 0:00:00]} 5. Nc3 {[%emt 0:00:30]} a6 {[%emt 0:00:00]} 6. Be2 {[%emt 0:03:30]} e5 {[%emt 0:00:00]} 7. Nb3 {[%emt 0:00:00]} Be7 {[%emt 0:00:00]} 8. O-O {[%emt 0:02:00]} O-O {[%emt 0:00:30]} 9. Kh1 {[%emt 0:00:30]} b6 {[%emt 0:06:30]} 10. f4 {[%emt 0:06:30]} Bb7 {[%emt 0:01:30]} 11. Bf3 {[%emt 0:01:30]} Nbd7 {[%emt 0:03:30]} 12. f5 {[%emt 0:13:30]} Rc8 {[%emt 0:06:30]} 13. Qe2 {[%emt 0:08:30]} b5 {[%emt 0:07:30]} 14. a3 {[%emt 0:09:30]} Re8 {[%emt 0:08:30]} 15. Bg5 {[%emt 0:13:30]} h6 {[%emt 0:18:30]} 16. Be3 {[%emt 0:06:30]} d5 {[%emt 0:03:30]} 17. exd5 {[%emt 0:06:30]} e4 {[%emt 0:06:30]} 18. Nxe4 {[%emt 0:09:19]} Nxe4 {[%emt 0:00:30]} 19. Bxe4 {[%emt 0:00:15]} Bd6 {[%emt 0:00:30]} 20. Qf3 {[%emt 0:07:19]} Qh4 {[%emt 0:03:30]} 21. Bf4 {[%emt 0:03:00]} Bxf4 {[%emt 0:00:30]} 22. Qxf4 {[%emt 0:00:11]} Rxe4 {[%emt 0:00:00]} 0-1

[Event "26th Zadar Open 2019"]
[Site "Zadar"]
[Date "2019.12.18"]
[Round "5.19"]
[White "Krasteva, Beloslava"]
[Black "Galperin, Platon"]
[Result "0-1"]
[ECO "A81"]
[WhiteElo "2264"]
[BlackElo "2462"]
[Annotator "ChessBase"]
[PlyCount "82"]
[EventDate "2019.12.15"]
[EventType "swiss"]
[EventCountry "CRO"]
[SourceTitle "playchess.com"]
[Source "ChessBase"]
[SourceQuality "1"]
[TimeControl "40/5400+30:1800+30"]

1. d4 {[%emt 0:00:30]} f5 {[%emt 0:01:30]} 2. g3 {[%emt 0:00:30]} Nf6 {[%emt 0:00:30]} 3. Bg2 {[%emt 0:00:30]} g6 {[%emt 0:00:00]} 4. Nh3 {[%emt 0:10:30]} Bg7 {[%emt 0:00:00]} 5. O-O {[%emt 0:00:30]} d6 {[%emt 0:04:30]} 6. d5 {[%emt 0:03:30]} c6 {[%emt 0:01:30]} 7. c4 {[%emt 0:02:30]} e5 {[%emt 0:04:30]} 8. dxe6 {[%emt 0:03:30]} Bxe6 {[%emt 0:00:30]} 9. Qc2 {[%emt 0:07:30]} O-O {[%emt 0:01:30]} 10. Rd1 {[%emt 0:03:30]} Qe7 {[%emt 0:01:30]} 11. Bf4 {[%emt 0:09:30]} Rd8 {[%emt 0:11:30]} 12. Ng5 {[%emt 0:02:30]} Na6 {[%emt 0:00:30]} 13. Nxe6 {[%emt 0:10:30]} Qxe6 {[%emt 0:00:30]} 14. Nc3 {[%emt 0:00:30]} h6 {[%emt 0:02:30]} 15. e4 {[%emt 0:05:30]} fxe4 {[%emt 0:03:30]} 16. Nxe4 {[%emt 0:00:30]} g5 {[%emt 0:04:30]} 17. Bd2 {[%emt 0:05:30]} Nxe4 {[%emt 0:00:30]} 18. Bxe4 {[%emt 0:00:30]} Rf8 {[%emt 0:00:30]} 19. Re1 {[%emt 0:08:30]} Be5 {[%emt 0:05:30]} 20. Bc3 {[%emt 0:02:30]} Qf6 {[%emt 0:02:30]} 21. Bxe5 {[%emt 0:01:30]} dxe5 {[%emt 0:00:00]} 22. Rad1 {[%emt 0:01:37]} Rad8 {[%emt 0:02:00]} 23. Rxd8 {[%emt 0:06:03]} Rxd8 {[%emt 0:00:00]} 24. Re3 {[%emt 0:04:16]} Nc5 {[%emt 0:09:00]} 25. Bf5 {[%emt 0:03:47]} Kg7 {[%emt 0:11:30]} 26. b4 {[%emt 0:01:08]} Na6 {[%emt 0:01:30]} 27. a3 {[%emt 0:00:19]} Nc7 {[%emt 0:00:00]} 28. Kg2 {[%emt 0:02:30]} Rd4 {[%emt 0:06:00]} 29. Bd3 {[%emt 0:01:11]} g4 {[%emt 0:04:30]} 30. Qe2 {[%emt 0:00:48]} Ne6 {[%emt 0:00:30]} 31. Re4 {[%emt 0:01:26]} Qf3+ {[%emt 0:00:00]} 32. Qxf3 {[%emt 0:01:25]} gxf3+ {[%emt 0:00:00]} 33. Kxf3 {[%emt 0:00:08]} Ng5+ {[%emt 0:02:30]} 34. Ke3 {[%emt 0:00:25]} Nxe4 {[%emt 0:00:00]} 35. Bxe4 {[%emt 0:00:04]} Rxc4 {[%emt 0:00:00]} 36. Bd3 {[%emt 0:00:40]} Rc3 {[%emt 0:00:00]} 37. a4 {[%emt 0:00:07]} Ra3 {[%emt 0:00:00]} 38. b5 {[%emt 0:00:57]} Rxa4 {[%emt 0:00:30]} 39. bxc6 {[%emt 0:00:05]} bxc6 {[%emt 0:00:00]} 40. f4 {[%emt 0:00:50]} exf4+ {[%emt 0:00:00]} 41. gxf4 {[%emt 0:30:04]} Rb4 {[%emt 0:30:30]} 0-1